bitfinex/quotes_BTCUSD_20241110
["timestamp","ask_amount","ask_price","bid_price","bid_amount"]
[1731203960024,0.00167,76696.0,76695.0,0.47657526]
[1731203960361,0.00167,76696.0,76695.0,0.48657526]
[1731203962384,0.00167,76702.0,76701.0,0.005]
[1731203962597,0.00167,76702.0,76701.0,0.24922261]
[1731203962748,0.00167,76702.0,76701.0,0.25414835]
[1731203964496,0.00167,76702.0,76701.0,0.30284835]
[1731203965697,0.00167,76702.0,76701.0,0.38544835]
[1731203966657,0.08841058,76702.0,76701.0,0.38544835]
[1731203967344,0.08841058,76702.0,76701.0,0.38044835]
[1731203968980,0.08841058,76702.0,76701.0,0.25414835]
[1731203971079,0.14209114,76702.0,76701.0,0.25414835]
[1731203973746,0.14209114,76702.0,76701.0,0.14216676]
[1731203973954,0.14209114,76702.0,76701.0,0.25437773]
[1731203976343,0.27049114,76702.0,76701.0,0.11713671]
[1731203976579,0.1334,76692.0,76691.0,0.000835]
[1731203976822,0.08674058,76692.0,76691.0,0.000835]
[1731203977029,0.6819,76700.0,76691.0,0.13307602]
[1731203977231,0.6819,76700.0,76691.0,0.13807602]
[1731203977232,0.08674058,76692.0,76691.0,0.13807602]
[1731203977501,0.17348116,76695.0,76692.0,0.005]
[1731203978378,0.01361074,76699.0,76695.0,0.005]
[1731203978580,0.20936164,76699.0,76696.0,0.13224102]
[1731203979063,0.01361074,76699.0,76696.0,0.13224102]
[1731203979915,0.17348116,76697.0,76696.0,0.13224102]
[1731203980341,0.17348116,76697.0,76695.0,0.005]
[1731203980985,0.06342405,76696.0,76695.0,0.005]
[1731203984119,0.06342405,76696.0,76691.0,0.000835]
[1731203984326,0.08674058,76692.0,76691.0,0.000835]
[1731203986419,0.6819,76698.0,76691.0,0.000835]
[1731203986622,0.6819,76698.0,76693.0,0.005]
[1731203986873,0.6819,76698.0,76694.0,0.05701365]
[1731203986874,0.1957509,76697.0,76694.0,0.05701365]
[1731203987096,0.6819,76698.0,76694.0,0.05701365]
[1731203987097,0.6819,76698.0,76695.0,0.03896525]
[1731203987318,0.6819,76698.0,76696.0,0.03896525]
[1731203987534,0.6819,76698.0,76696.0,0.00548363]
[1731203987535,0.08674058,76697.0,76696.0,0.00548363]
[1731203987763,0.08674058,76697.0,76696.0,0.17668593]
[1731203987972,0.08674058,76697.0,76696.0,0.1712023]
[1731203988179,0.08674058,76697.0,76696.0,0.17668586]
[1731203989235,0.17348116,76697.0,76696.0,0.17668586]
[1731203989439,0.08674058,76697.0,76696.0,0.17668586]
[1731203989656,0.17348116,76697.0,76696.0,0.17668586]
[1731203991676,0.08674058,76697.0,76696.0,0.17668586]
[1731203991878,0.17348116,76697.0,76696.0,0.17668586]
[1731203992086,0.17348116,76697.0,76696.0,0.04444484]
[1731203992305,0.17515116,76697.0,76696.0,0.04444484]
[1731203993305,0.08841058,76697.0,76696.0,0.04444484]
[1731203993716,0.17515116,76697.0,76696.0,0.00548356]
[1731203993918,0.08841058,76697.0,76696.0,0.04445158]
[1731203994124,0.08841058,76697.0,76696.0,0.03896802]
[1731203994997,0.00167,76697.0,76696.0,0.17620904]
[1731203995208,0.00167,76697.0,76696.0,0.27239694]
[1731203995417,0.00167,76697.0,76696.0,0.28047995]
[1731203995656,0.00167,76697.0,76696.0,0.32907995]
[1731203995862,0.00167,76697.0,76696.0,0.32647255]
[1731203996076,0.00167,76697.0,76696.0,0.33347255]
[1731203996283,0.00167,76702.0,76701.0,0.005]
[1731203996502,0.00167,76702.0,76701.0,0.14270348]
[1731203996719,0.00167,76702.0,76701.0,0.25460904]
[1731203996931,0.00167,76702.0,76701.0,0.26007172]
[1731203997146,0.00167,76702.0,76701.0,0.18167172]
[1731203997352,0.00167,76702.0,76701.0,0.19945962]
[1731203997795,0.00167,76702.0,76701.0,0.18167172]
[1731203999502,0.13675756,76702.0,76701.0,0.18167172]
[1731203999925,0.13675756,76702.0,76701.0,0.17620904]
[1731204001189,0.13675756,76702.0,76701.0,0.17120904]
[1731204001392,0.13675756,76702.0,76701.0,0.04396802]
[1731204001743,0.18861521,76702.0,76701.0,0.04396802]
[1731204002323,0.18861521,76702.0,76701.0,0.04397968]
[1731204002685,0.18861521,76702.0,76701.0,0.005]
[1731204002888,0.18861521,76702.0,76701.0,0.04398069]
[1731204005689,0.00167,76702.0,76701.0,0.17622171]
[1731204006119,0.13675756,76702.0,76701.0,0.17622171]
[1731204010892,0.00167,76702.0,76701.0,0.17622171]
[1731204011104,0.00167,76702.0,76701.0,0.22482171]
[1731204011945,0.00167,76702.0,76701.0,0.22482564]
[1731204014454,0.00167,76702.0,76701.0,0.22483063]
[1731204014654,0.00167,76702.0,76701.0,0.24731369]
[1731204015556,0.00167,76702.0,76701.0,0.20832408]
[1731204015771,0.00167,76702.0,76701.0,0.24731933]
[1731204015913,0.00167,76702.0,76701.0,0.34501933]
[1731204016174,0.000835,76709.0,76708.0,0.0877]
[1731204016488,0.000835,76709.0,76708.0,0.32104294]
[1731204016710,0.000835,76709.0,76708.0,0.31843627]
[1731204016901,0.1957609,76720.0,76711.0,0.005]
[1731204017126,0.1957609,76720.0,76719.0,0.005]
[1731204017330,0.1957609,76720.0,76719.0,0.17623627]
[1731204017613,1e-05,76720.0,76719.0,0.1938599]
[1731204017814,1e-05,76720.0,76719.0,0.19935435]
[1731204018300,1e-05,76720.0,76719.0,0.28205435]
[1731204018524,0.00167,76744.0,76731.0,0.005]
[1731204018737,0.00167,76744.0,76734.0,0.005]
[1731204018738,0.13508756,76739.0,76734.0,0.005]
[1731204018947,0.13508756,76739.0,76736.0,0.005]
[1731204019163,0.00167,76744.0,76737.0,0.17123627]
[1731204019385,0.13508756,76738.0,76737.0,0.17668108]
[1731204019592,0.05318022,76738.0,76737.0,0.17668108]
[1731204019795,0.05318022,76738.0,76737.0,0.18168108]
[1731204019796,0.18826778,76738.0,76737.0,0.18168108]
[1731204020012,0.13508756,76738.0,76737.0,0.19973019]
[1731204021888,0.13508756,76738.0,76737.0,0.19960972]
[1731204022441,0.13508756,76738.0,76737.0,0.18156061]
[1731204024345,0.13508756,76738.0,76737.0,0.17656061]
[1731204024567,0.13508756,76738.0,76737.0,0.18156061]
[1731204025177,0.13508756,76738.0,76737.0,0.18153941]
[1731204028669,0.13592256,76738.0,76737.0,0.18153941]
[1731204029092,0.13592256,76738.0,76737.0,0.19969335]
[1731204029528,0.08748008,76738.0,76737.0,0.19969335]
[1731204029743,0.08748008,76738.0,76737.0,0.04429839]
[1731204029744,0.16248008,76738.0,76737.0,0.04429839]
[1731204029944,0.16248008,76738.0,76737.0,0.04929839]
[1731204030152,0.16248008,76738.0,76737.0,0.03885358]
[1731204030768,0.16248008,76738.0,76737.0,0.04385358]
[1731204031646,0.16248008,76738.0,76737.0,0.03882964]
[1731204031848,0.08748008,76738.0,76737.0,0.03882964]
[1731204032059,0.08748008,76738.0,76732.0,0.005]
[1731204032263,0.08664508,76734.0,76733.0,0.04383227]
[1731204032663,0.08664508,76734.0,76733.0,0.04925025]
[1731204033159,0.08664508,76734.0,76733.0,0.04425025]
[1731204033375,0.08664508,76734.0,76733.0,0.04925025]
[1731204033573,0.08664508,76734.0,76733.0,0.04425025]
[1731204033826,0.08664508,76734.0,76733.0,0.04925025]
[1731204035112,0.08664508,76734.0,76733.0,0.04926595]
[1731204035284,0.08664508,76734.0,76733.0,0.04927344]
[1731204035744,0.08437761,76734.0,76733.0,0.04385546]
[1731204036174,0.08437761,76734.0,76733.0,0.17609648]
[1731204036377,0.08748008,76738.0,76734.0,0.005]
[1731204036602,0.000835,76738.0,76737.0,0.005]
[1731204036810,0.05386609,76738.0,76737.0,0.17609648]
[1731204037022,0.05386609,76738.0,76737.0,0.18151906]
[1731204039920,0.000835,76738.0,76737.0,0.18151906]
[1731204040118,0.000835,76738.0,76737.0,0.19987238]
[1731204041678,0.000835,76738.0,76737.0,0.19989627]
[1731204042080,0.000835,76738.0,76737.0,0.16098732]
[1731204042297,0.000835,76738.0,76737.0,0.19989626]
[1731204042512,0.00167,76744.0,76737.0,0.19989626]
[1731204042513,0.00167,76744.0,76743.0,0.005]
[1731204042726,0.05475114,76744.0,76743.0,0.25774996]
[1731204042943,0.00167,76744.0,76743.0,0.28077121]
[1731204043510,0.00167,76744.0,76743.0,0.24186227]
[1731204043739,0.00167,76744.0,76743.0,0.28079779]
[1731204045011,0.24513698,76749.0,76743.0,0.28079779]
[1731204045170,0.24513698,76749.0,76748.0,0.005]
[1731204045376,0.24513698,76749.0,76748.0,0.16097744]
[1731204045576,0.04938608,76749.0,76748.0,0.16097744]
[1731204045782,0.13661588,76750.0,76748.0,0.16097744]
[1731204046607,0.13661588,76750.0,76748.0,0.15597744]
[1731204046805,0.13661588,76750.0,76748.0,0.16097744]
[1731204047005,0.13661588,76750.0,76749.0,0.01760965]
[1731204047210,0.13661588,76750.0,76749.0,0.07175826]
[1731204047567,0.18980803,76750.0,76749.0,0.07175826]
[1731204048496,0.18980803,76750.0,76749.0,0.09612451]
[1731204049495,0.18980803,76750.0,76749.0,0.10112451]
[1731204050328,0.18980803,76750.0,76749.0,0.08351486]
[1731204051497,0.18980803,76750.0,76749.0,0.07851486]
[1731204052896,0.05486215,76750.0,76749.0,0.07310326]
[1731204053067,0.58677215,76750.0,76749.0,0.07310326]
[1731204053304,0.63307215,76750.0,76749.0,0.11207764]
[1731204053968,0.63307215,76750.0,76749.0,0.07310326]
[1731204055770,0.63307215,76750.0,76746.0,0.005]
[1731204055966,0.63307215,76750.0,76747.0,0.07307571]
[1731204056125,0.63307215,76750.0,76748.0,0.07307571]
[1731204056347,0.63307215,76750.0,76746.0,0.005]
[1731204056577,0.63307215,76750.0,76747.0,0.07307647]
[1731204056793,0.63307215,76750.0,76748.0,0.07307647]
[1731204056989,0.63307215,76750.0,76749.0,0.07307647]
[1731204058214,0.58677215,76750.0,76749.0,0.12375565]
[1731204058467,0.58677215,76750.0,76749.0,0.09126268]
[1731204058879,0.58677215,76750.0,76749.0,0.07955762]
[1731204059080,0.05486215,76750.0,76749.0,0.07955762]
[1731204059514,0.14148655,76750.0,76749.0,0.07955762]
[1731204060364,0.14148655,76750.0,76749.0,0.07307647]
[1731204063418,0.14148655,76750.0,76749.0,0.11206269]
[1731204063635,0.14148655,76750.0,76749.0,0.07307647]
[1731204063871,0.14148655,76750.0,76749.0,0.11206419]
[1731204064547,0.14148655,76750.0,76749.0,0.11207394]
[1731204064988,0.14148655,76750.0,76749.0,0.11207397]
[1731204065398,0.14148655,76750.0,76749.0,0.07307647]
[1731204065858,0.23311095,76750.0,76749.0,0.07307647]
[1731204066067,0.31401095,76750.0,76749.0,0.07307647]
[1731204066819,0.22738655,76750.0,76749.0,0.07307647]
[1731204068444,0.14648655,76750.0,76749.0,0.07307647]
[1731204070792,0.67839655,76750.0,76749.0,0.07307647]
[1731204071124,0.67339655,76750.0,76749.0,0.07307647]
[1731204071753,0.58677215,76750.0,76749.0,0.07307647]
[1731204071956,0.67339655,76750.0,76749.0,0.07307647]
[1731204074385,0.67312787,76750.0,76749.0,0.07307647]
[1731204074786,0.76475227,76750.0,76749.0,0.07307647]
[1731204075498,0.59150347,76750.0,76749.0,0.07474447]
[1731204075698,0.67812787,76750.0,76749.0,0.07474447]
[1731204076771,0.77812787,76750.0,76749.0,0.07474447]
[1731204076975,0.69150347,76750.0,76749.0,0.07474447]
[1731204077198,0.77812787,76750.0,76749.0,0.07474447]
[1731204078307,0.86475227,76750.0,76749.0,0.07474447]
[1731204078923,0.99305227,76750.0,76749.0,0.07474447]
[1731204079147,0.99305227,76750.0,76749.0,0.02602682]
[1731204079148,1.10668694,76750.0,76749.0,0.02602682]
[1731204079904,0.99805227,76750.0,76749.0,0.02602682]
[1731204081951,0.99805227,76750.0,76749.0,0.02606094]
[1731204082754,1.00005227,76750.0,76749.0,0.02606094]
[1731204083357,0.99805227,76750.0,76749.0,0.02606094]
[1731204088618,0.99805227,76750.0,76749.0,0.001668]
[1731204089031,0.99805227,76750.0,76749.0,0.02594816]
[1731204090301,0.99805227,76750.0,76749.0,0.001568]
[1731204091030,0.005,76737.0,76736.0,0.001668]
[1731204091408,0.2782488,76737.0,76736.0,0.03037895]
[1731204091614,0.2782488,76737.0,76736.0,0.001668]
[1731204091858,0.2782488,76737.0,76714.0,0.03900826]
[1731204091859,0.005,76729.0,76714.0,0.03900826]
[1731204092054,0.1,76736.0,76716.0,0.1223]
[1731204092055,0.1782488,76723.0,76716.0,0.1223]
[1731204092180,0.005,76721.0,76716.0,0.1223]
[1731204092386,0.1732488,76717.0,76712.0,0.1957509]
[1731204092631,0.0886244,76725.0,76711.0,0.0765]
[1731204092632,0.1732488,76713.0,76711.0,0.0765]
[1731204092837,0.7051588,76713.0,76712.0,0.02436735]
[1731204095458,0.6185344,76713.0,76712.0,0.02436735]
[1731204096721,0.66073875,76713.0,76712.0,0.02436735]
[1731204097139,0.57411435,76713.0,76712.0,0.02436735]
[1731204097364,0.57411435,76713.0,76712.0,0.28720837]
[1731204097577,0.04220435,76713.0,76712.0,0.29220837]
[1731204097784,0.0866244,76714.0,76713.0,0.005]
[1731204097986,0.0866244,76714.0,76713.0,0.15996735]
[1731204098413,0.0866244,76714.0,76713.0,0.13994525]
[1731204098617,0.0866244,76714.0,76713.0,0.16424976]
[1731204101272,0.29796597,76714.0,76713.0,0.02864976]
[1731204101679,0.29796597,76714.0,76713.0,0.02430451]
[1731204101885,0.29796597,76714.0,76712.0,0.000834]
[1731204102090,0.29796597,76714.0,76713.0,0.02430323]
[1731204102714,0.21653744,76714.0,76713.0,0.02430323]
[1731204103122,0.21653744,76714.0,76713.0,0.02869512]
[1731204103350,0.12991304,76714.0,76713.0,0.02869512]
[1731204103570,0.71025805,76714.0,76713.0,0.02869512]
[1731204103979,0.71025805,76714.0,76713.0,0.02430323]
[1731204105900,0.71025805,76714.0,76712.0,0.000834]
[1731204107564,0.78178386,76714.0,76712.0,0.000834]
[1731204109337,0.53191,76713.0,76712.0,0.000834]
[1731204114583,0.66696941,76713.0,76712.0,0.000834]
[1731204122595,0.66696941,76713.0,76712.0,0.03989078]
[1731204124521,0.53191,76713.0,76712.0,0.000834]
[1731204124695,0.53191,76713.0,76712.0,0.048334]
[1731204125402,0.6896295,76713.0,76712.0,0.000834]
[1731204128445,0.61860369,76713.0,76712.0,0.000834]
[1731204131350,0.53191,76713.0,76712.0,0.130534]
[1731204131897,0.53191,76713.0,76712.0,0.13490496]
[1731204132662,0.53191,76713.0,76712.0,0.1739725]
[1731204134240,0.53191,76713.0,76712.0,0.1789725]
[1731204136147,0.12998233,76714.0,76713.0,0.005]
[1731204136381,0.12998233,76714.0,76713.0,0.04406754]
[1731204136591,0.12998233,76714.0,76713.0,0.04836381]
[1731204138561,0.12998233,76714.0,76713.0,0.04834086]
[1731204138786,0.04328864,76714.0,76713.0,0.04834086]
[1731204139225,0.53191,76719.0,76713.0,0.04834086]
[1731204139437,0.53191,76719.0,76714.0,0.04404459]
[1731204139647,0.08669369,76718.0,76715.0,0.03904459]
[1731204139866,0.04157311,76719.0,76717.0,0.0471]
[1731204140074,0.38244459,76730.0,76718.0,0.17628561]
[1731204140281,0.53191,76729.0,76719.0,0.07807102]
[1731204140506,0.53191,76729.0,76720.0,0.03902643]
[1731204140722,0.53191,76729.0,76721.0,0.03904459]
[1731204140933,0.08669369,76727.0,76722.0,0.03904459]
[1731204141168,0.08669369,76727.0,76723.0,0.03904459]
[1731204141376,0.08669369,76727.0,76724.0,0.03904459]
[1731204141836,0.08669369,76727.0,76725.0,0.04333374]
[1731204142056,0.08669369,76727.0,76726.0,0.03904459]
[1731204143560,0.17338738,76727.0,76726.0,0.03904459]
[1731204143772,0.17338738,76727.0,76705.0,0.36871805]
[1731204143773,0.005,76722.0,76714.0,0.005]
[1731204143998,0.08669369,76715.0,76712.0,0.000834]
[1731204144207,0.08669369,76715.0,76713.0,0.0390058]
[1731204144419,0.08669369,76715.0,76714.0,0.0390058]
[1731204144903,0.08669369,76715.0,76714.0,0.04328005]
[1731204145319,0.08669369,76715.0,76714.0,0.0390058]
[1731204148782,0.08669369,76715.0,76714.0,0.03901185]
[1731204149207,0.08669369,76715.0,76714.0,0.03901227]
[1731204150301,0.15675812,76715.0,76714.0,0.03901227]
[1731204150516,0.19834817,76715.0,76714.0,0.03901227]
[1731204150958,0.73025817,76715.0,76714.0,0.03901227]
[1731204151646,0.66019374,76715.0,76714.0,0.03901227]
[1731204152316,0.57350005,76715.0,76713.0,0.000835]
[1731204152563,0.57350005,76715.0,76714.0,0.16320875]
[1731204152774,0.57350005,76715.0,76714.0,0.16750652]
[1731204154226,0.57350005,76715.0,76714.0,0.36507472]
[1731204154484,0.53191,76715.0,76714.0,0.32606597]
[1731204155557,0.53177965,76715.0,76714.0,0.30474754]
[1731204156721,0.1957509,76728.0,76714.0,0.30474754]
[1731204156924,0.1957509,76728.0,76727.0,0.1318]
[1731204157184,0.1957509,76728.0,76727.0,0.20978366]
[1731204157407,0.04284351,76728.0,76727.0,0.1750868]
[1731204157634,0.04284351,76728.0,76727.0,0.19649297]
[1731204157835,0.08669369,76731.0,76728.0,0.005]
[1731204158048,0.08669369,76731.0,76729.0,0.03900875]
[1731204158279,0.08669369,76731.0,76730.0,0.03900875]
[1731204158507,0.08669369,76731.0,76730.0,0.0432852]
[1731204159663,0.08669369,76731.0,76730.0,0.0431981]
[1731204159864,0.17338738,76731.0,76730.0,0.0431981]
[1731204160128,0.08669369,76731.0,76730.0,0.0431981]
[1731204160340,0.08669369,76731.0,76727.0,0.03892165]
[1731204160536,0.08669369,76728.0,76726.0,0.005]
[1731204160722,0.08669369,76728.0,76727.0,0.03893085]
[1731204161325,0.13500404,76728.0,76727.0,0.03893085]
[1731204162791,0.66678369,76728.0,76721.0,0.005]
[1731204162973,0.13500404,76723.0,76722.0,0.03893409]
[1731204163122,0.13500404,76723.0,76722.0,0.04320922]
[1731204163328,0.13500404,76723.0,76722.0,0.03893409]
[1731204163537,0.14000404,76723.0,76722.0,0.03893409]
[1731204163742,0.14000404,76723.0,76719.0,0.005]
[1731204163973,0.13500404,76720.0,76714.0,0.005]
[1731204164166,0.13500404,76720.0,76716.0,0.005]
[1731204164404,0.13500404,76720.0,76717.0,0.0389429]
[1731204164550,0.13500404,76720.0,76718.0,0.0389429]
[1731204164745,0.13500404,76720.0,76716.0,0.005]
[1731204164947,0.13500404,76720.0,76717.0,0.03894393]
[1731204165157,0.13500404,76720.0,76718.0,0.03894393]
[1731204165386,0.13500404,76720.0,76716.0,0.005]
[1731204165588,0.13500404,76720.0,76717.0,0.03894421]
[1731204165813,0.13500404,76720.0,76718.0,0.03894421]
[1731204166040,0.13500404,76720.0,76716.0,0.005]
[1731204166247,0.13500404,76720.0,76717.0,0.0389416]
[1731204166457,0.13500404,76720.0,76718.0,0.0389416]
[1731204166657,0.13500404,76720.0,76716.0,0.005]
[1731204166875,0.13500404,76720.0,76717.0,0.03894401]
[1731204167151,0.13500404,76720.0,76718.0,0.03894401]
[1731204167353,0.13500404,76720.0,76716.0,0.005]
[1731204167559,0.13500404,76720.0,76717.0,0.0389448]
[1731204167801,0.13500404,76720.0,76718.0,0.0389448]
[1731204168194,0.13500404,76720.0,76716.0,0.005]
[1731204168395,0.13500404,76720.0,76717.0,0.03894551]
[1731204168611,0.53177965,76719.0,76718.0,0.03894551]
[1731204169627,0.53177965,76719.0,76716.0,0.005]
[1731204169832,0.53177965,76719.0,76717.0,0.03894489]
[1731204170037,0.53177965,76719.0,76718.0,0.03894489]
[1731204170263,0.53177965,76719.0,76716.0,0.005]
[1731204170594,0.1957509,76718.0,76714.0,0.000835]
[1731204170793,0.53177965,76717.0,76714.0,0.000835]
[1731204170993,0.13500404,76715.0,76714.0,0.000835]
[1731204172317,0.14000404,76715.0,76714.0,0.000835]
[1731204174464,0.67178369,76715.0,76714.0,0.000835]
[1731204183422,0.62347857,76715.0,76714.0,0.000835]
[1731204183621,0.61847857,76715.0,76714.0,0.000835]
[1731204183822,0.53177965,76715.0,76714.0,0.000835]
[1731204184045,0.61847857,76715.0,76714.0,0.0064582]
[1731204184374,0.61847857,76715.0,76714.0,0.000835]
[1731204186750,0.61847857,76715.0,76714.0,0.0136854]
[1731204187194,0.61847857,76715.0,76714.0,0.0192991]
[1731204187412,0.61847857,76715.0,76714.0,0.0064487]
[1731204187619,0.61847857,76715.0,76714.0,0.000835]
[1731204188503,0.61847857,76715.0,76714.0,0.050135]
[1731204188724,0.53177965,76715.0,76714.0,0.050135]
[1731204188944,0.53177965,76715.0,76714.0,0.05464591]
[1731204189188,0.53177965,76715.0,76714.0,0.050135]
[1731204189401,0.61847857,76715.0,76714.0,0.05514712]
[1731204189592,0.61847857,76715.0,76714.0,0.050135]
[1731204190209,0.53177965,76715.0,76714.0,0.27742642]
[1731204190464,0.04302253,76720.0,76716.0,0.005]
[1731204190689,0.04302253,76720.0,76717.0,0.25824102]
[1731204190880,0.04302253,76720.0,76717.0,0.26387406]
[1731204191420,0.04302253,76720.0,76718.0,0.126]
[1731204191623,0.04302253,76720.0,76719.0,0.13224102]
[1731204191859,0.04302253,76720.0,76719.0,0.13633766]
[1731204193427,0.00167,76720.0,76719.0,0.14133766]
[1731204193626,0.00167,76720.0,76719.0,0.28303843]
[1731204197209,0.00167,76720.0,76719.0,0.15079741]
[1731204197412,0.13666236,76720.0,76719.0,0.00409664]
[1731204197669,0.13666236,76720.0,76716.0,0.005]
[1731204198049,0.13666236,76720.0,76714.0,0.000835]
[1731204198276,0.13499236,76715.0,76714.0,0.005835]
[1731204199991,0.00167,76720.0,76716.0,0.005]
[1731204200268,0.04382878,76720.0,76716.0,0.005]
[1731204200613,0.00167,76720.0,76716.0,0.005]
[1731204201269,0.53177965,76719.0,76716.0,0.005]
[1731204202511,0.53177965,76719.0,76716.0,0.0549]
[1731204205926,0.53177965,76719.0,76716.0,0.005]
[1731204206689,0.53177965,76719.0,76715.0,0.000835]
[1731204206820,0.53177965,76719.0,76715.0,0.005835]
[1731204207025,0.53177965,76718.0,76715.0,0.005835]
[1731204207230,0.53177965,76718.0,76715.0,0.000835]
[1731204207717,0.023,76716.0,76715.0,0.000835]
[1731204207917,0.028,76716.0,76715.0,0.000835]
[1731204208153,0.23829236,76716.0,76715.0,0.000835]
[1731204213175,0.77007201,76716.0,76715.0,0.000835]
[1731204215142,0.76507201,76716.0,76715.0,0.000835]
[1731204215322,0.69477201,76716.0,76715.0,0.000835]
[1731204216622,0.68977201,76716.0,76715.0,0.000835]
[1731204217331,0.55477965,76716.0,76715.0,0.000835]
[1731204217525,0.73320157,76716.0,76715.0,0.000835]
[1731204219110,0.64149061,76716.0,76715.0,0.000835]
[1731204219313,0.64649061,76716.0,76715.0,0.000835]
[1731204220161,0.64149061,76716.0,76715.0,0.000835]
[1731204222816,0.72820157,76716.0,76715.0,0.000835]
[1731204225652,0.72987157,76716.0,76715.0,0.000835]
[1731204230527,0.91315565,76716.0,76715.0,0.000835]
[1731204230773,1.04075565,76716.0,76715.0,0.000835]
[1731204234148,0.91647157,76716.0,76715.0,0.000835]
[1731204234359,0.83487157,76716.0,76715.0,0.000835]
[1731204235210,1.04798253,76716.0,76715.0,0.000835]
[1731204235442,0.96627157,76716.0,76715.0,0.000835]
[1731204236125,1.09851259,76716.0,76715.0,0.000835]
[1731204236294,1.2264708,76716.0,76715.0,0.000835]
[1731204238026,0.005,76707.0,76694.0,0.0549]
[1731204238198,0.55477965,76706.0,76705.0,0.1957509]
[1731204238394,0.023,76704.0,76694.0,0.0549]
[1731204238663,0.10971096,76702.0,76694.0,0.0549]
[1731204239137,0.10971096,76702.0,76696.0,0.0822]
[1731204239911,0.18436002,76702.0,76696.0,0.0822]
[1731204241918,0.18436002,76702.0,76694.0,0.0549]
[1731204242421,0.27107098,76702.0,76694.0,0.0499]
[1731204242621,0.80285063,76702.0,76692.0,0.0795]
[1731204243145,0.90285063,76702.0,76690.0,0.000835]
[1731204243299,0.90285063,76702.0,76690.0,0.1965859]
[1731204243300,0.91285063,76702.0,76690.0,0.1965859]
[1731204244325,0.005,76699.0,76690.0,0.1965859]
[1731204244533,0.29642192,76698.0,76690.0,0.1965859]
[1731204245588,0.29642192,76698.0,76690.0,0.000835]
[1731204248730,0.82820157,76698.0,76690.0,0.000835]
[1731204251908,1.17685355,76698.0,76690.0,0.000835]
[1731204252038,1.09014259,76698.0,76690.0,0.000835]
[1731204252242,1.17685355,76698.0,76690.0,0.000835]
[1731204252464,1.30348944,76698.0,76690.0,0.000835]
[1731204252667,1.21677848,76698.0,76690.0,0.000835]
[1731204253257,0.005,76692.0,76690.0,0.000835]
[1731204253505,0.84020157,76692.0,76690.0,0.000835]
[1731204253863,0.83820157,76692.0,76690.0,0.000835]
[1731204254063,0.96925051,76692.0,76690.0,0.000835]
[1731204254464,1.0117196,76692.0,76690.0,0.000835]
[1731204255820,0.92500864,76692.0,76690.0,0.000835]
[1731204256034,0.7939597,76692.0,76690.0,0.000835]
[1731204256240,0.88067066,76692.0,76690.0,0.000835]
[1731204256443,0.7939597,76692.0,76690.0,0.000835]
[1731204257033,0.78797085,76692.0,76690.0,0.000835]
[1731204257261,0.98804409,76692.0,76690.0,0.000835]
[1731204257458,0.87468181,76692.0,76690.0,0.000835]
[1731204258898,0.78797085,76692.0,76690.0,0.000835]
[1731204260803,0.78964085,76692.0,76690.0,0.000835]
[1731204266968,0.80325303,76692.0,76690.0,0.000835]
[1731204271216,0.12701115,76691.0,76690.0,0.000835]
[1731204271431,0.87135712,76691.0,76690.0,0.000835]
[1731204272746,0.95806808,76691.0,76690.0,0.000835]
[1731204272960,0.87135712,76691.0,76690.0,0.000835]
[1731204273621,0.95806808,76691.0,76690.0,0.000835]
[1731204273871,0.87135712,76691.0,76690.0,0.000835]
[1731204274341,0.74550176,76691.0,76690.0,0.000835]
[1731204283056,0.83221272,76691.0,76690.0,0.000835]
[1731204283973,0.74550176,76691.0,76690.0,0.000835]
[1731204289012,0.74149061,76691.0,76690.0,0.000835]
[1731204291597,0.82820157,76691.0,76690.0,0.000835]
[1731204291797,0.92586907,76691.0,76690.0,0.000835]
[1731204296722,0.92786907,76691.0,76690.0,0.000835]
[1731204296948,0.92586907,76691.0,76690.0,0.000835]
[1731204300751,0.92988022,76691.0,76690.0,0.000835]
[1731204301478,1.06212124,76691.0,76690.0,0.000835]
[1731204301691,0.00401115,76688.0,76687.0,0.001474]
[1731204301894,0.02701115,76688.0,76687.0,0.001474]
[1731204303071,0.21372211,76688.0,76687.0,0.126574]
[1731204303271,0.74149061,76688.0,76687.0,0.126574]
[1731204303471,0.82820157,76688.0,76687.0,0.049774]
[1731204303682,0.91719797,76688.0,76687.0,0.001474]
[1731204305457,0.91719797,76688.0,76681.0,0.0050752]
[1731204305802,0.29642192,76682.0,76681.0,0.0050752]
[1731204305931,0.38814172,76682.0,76681.0,0.0050752]
[1731204306536,0.4017539,76682.0,76681.0,0.0050752]
[1731204306928,0.61126486,76682.0,76680.0,0.001474]
[1731204307138,0.123,76681.0,76680.0,0.001474]
[1731204307338,0.20410269,76681.0,76680.0,0.001474]
[1731204307994,0.73588234,76681.0,76680.0,0.001474]
[1731204309278,0.90930426,76681.0,76680.0,0.001474]
[1731204310024,0.9520766,76681.0,76680.0,0.001474]
[1731204311202,0.87097391,76681.0,76680.0,0.001474]
[1731204314810,0.69755199,76681.0,76680.0,0.001474]
[1731204314986,0.87097391,76681.0,76680.0,0.001474]
[1731204317823,0.89750276,76681.0,76680.0,0.001474]
[1731204320475,0.98421372,76681.0,76680.0,0.001474]
[1731204320659,1.01046827,76681.0,76680.0,0.001474]
[1731204321025,0.83704635,76681.0,76680.0,0.001474]
[1731204321221,1.09717923,76681.0,76680.0,0.001474]
[1731204325365,0.17342192,76677.0,76676.0,8.092e-05]
[1731204325688,0.94985193,76677.0,76676.0,8.092e-05]
[1731204329213,0.86314097,76677.0,76676.0,8.092e-05]
[1731204329878,0.86314097,76677.0,76676.0,0.00091592]
[1731204330106,0.77643001,76677.0,76676.0,0.04611592]
[1731204330315,0.86314097,76677.0,76676.0,0.04611592]
[1731204336510,0.86314097,76677.0,76676.0,0.00091592]
[1731204343010,0.77643001,76677.0,76676.0,0.00091592]
[1731204343223,0.86314097,76677.0,76676.0,0.00091592]
[1731204351060,0.77643001,76677.0,76676.0,0.00091592]
[1731204351231,0.86314097,76677.0,76676.0,0.00091592]
[1731204353501,0.86314097,76677.0,76676.0,0.08311592]
[1731204355343,0.74149061,76677.0,76676.0,0.08311592]
[1731204356644,0.65477965,76677.0,76676.0,0.12831592]
[1731204356853,0.00167,76680.0,76679.0,0.00098885]
[1731204357102,0.00167,76680.0,76679.0,0.12838885]
[1731204357285,0.00167,76680.0,76679.0,0.13767201]
[1731204358095,0.02467,76680.0,76679.0,0.13767201]
[1731204358310,0.00167,76680.0,76679.0,0.26991303]
[1731204358715,0.00167,76680.0,76679.0,0.27491303]
[1731204360085,0.00167,76680.0,76679.0,0.27752083]
[1731204360288,0.00167,76680.0,76679.0,0.27491303]
[1731204360963,0.00167,76680.0,76679.0,0.27752085]
[1731204361337,0.00167,76680.0,76679.0,0.27491303]